bitfinex-derivatives/quotes_BTCF0:USTF0_20251225
["timestamp","ask_amount","ask_price","bid_price","bid_amount"]
[1766678391295,0.07690825,88360.0,88344.0,0.0113272]
[1766678392302,0.07690825,88360.0,88346.0,0.011327]
[1766678392502,0.05716,88362.0,88346.0,0.011327]
[1766678392705,0.07690825,88370.0,88343.0,0.0113273]
[1766678392901,0.0113242,88368.0,88341.0,0.00016976]
[1766678393503,0.0113242,88368.0,88351.0,0.0113264]
[1766678393897,0.0407775,88401.0,88341.0,0.00016976]
[1766678394096,0.09526825,88400.0,88375.0,0.0113232]
[1766678394308,0.0113204,88398.0,88379.0,0.0113227]
[1766678394496,0.0113204,88398.0,88370.0,0.07690825]
[1766678395096,0.00016976,88393.0,88378.0,0.0113229]
[1766678395795,0.00016976,88393.0,88379.0,0.0113227]
[1766678396089,0.00016976,88393.0,88382.0,0.0113223]
[1766678396495,0.00016976,88393.0,88379.0,0.0113227]
[1766678397113,0.00016976,88393.0,88379.0,0.00905955]
[1766678398615,0.0113138,88449.0,88380.0,0.1538165]
[1766678398910,0.05716,88432.0,88396.0,0.0113206]
[1766678399210,0.05716,88432.0,88410.0,0.07690825]
[1766678399605,0.00016966,88430.0,88412.0,0.00016966]
[1766678399806,1.4444,88451.0,88420.0,0.07690825]
[1766678400008,0.05716,88450.0,88420.0,0.07690825]
[1766678400416,0.05716,88450.0,88416.0,0.01131]
[1766678400907,0.0001126,88442.0,88424.0,0.00016966]
[1766678402506,0.05716,88450.0,88435.0,0.0113156]
[1766678402810,0.0002261,88458.0,88438.0,0.0113151]
[1766678403118,0.0002261,88458.0,88439.0,0.011315]
[1766678403308,0.011311,88472.0,88446.0,0.0113141]
[1766678403507,0.05716,88471.0,88450.0,0.00016956]
[1766678403702,0.0113113,88469.0,88450.0,0.00016956]
[1766678404203,0.05716,88471.0,88450.0,0.00016956]
[1766678405120,0.0113132,88455.0,88450.0,6e-08]
[1766678405319,0.0113133,88453.0,88450.0,6e-08]
[1766678406916,0.05716,88454.0,88450.0,6e-08]
[1766678407125,0.0684733,88454.0,88450.0,6e-08]
[1766678407721,0.05439174,88454.0,88450.0,6e-08]
[1766678409317,0.06570494,88454.0,88450.0,6e-08]
[1766678409822,0.05439174,88454.0,88450.0,6e-08]
[1766678412527,0.0113128,88458.0,88450.0,6e-08]
[1766678413525,0.05712,88459.0,88431.0,0.00552]
[1766678413729,0.05712,88459.0,88428.0,0.0113165]
[1766678413912,0.0113141,88448.0,88429.0,0.01428]
[1766678414429,0.0113143,88445.0,88430.0,0.00016956]
[1766678414826,0.011313,88456.0,88435.0,0.0113155]
[1766678415327,0.0113133,88454.0,88435.0,0.0113155]
[1766678416028,0.00016918,88460.0,88430.0,0.00016956]
[1766678416229,0.00016918,88460.0,88442.0,0.0113147]
[1766678416527,0.0113112,88470.0,88442.0,0.01072]
[1766678416730,0.0113112,88470.0,88451.0,0.0113135]
[1766678417026,0.0113112,88470.0,88448.0,0.0113139]
[1766678417222,0.0113115,88467.0,88445.0,0.0113143]
[1766678417426,0.0113115,88467.0,88447.0,0.01148356]
[1766678417620,0.0113111,88471.0,88450.0,0.0113136]
[1766678417825,0.01464,88475.0,88450.0,0.0113136]
[1766678418033,0.0113112,88470.0,88450.0,0.0113136]
[1766678418329,0.0113115,88468.0,88449.0,0.0113137]
[1766678419127,0.01464,88475.0,88447.0,0.00016956]
[1766678419927,0.0113097,88482.0,88447.0,0.00016956]
[1766678419928,0.0113097,88482.0,88452.0,0.0113133]
[1766678420326,0.0113108,88473.0,88452.0,0.0113133]
[1766678420526,0.0113096,88482.0,88461.0,0.0113122]
[1766678420731,0.0113099,88480.0,88463.0,0.00016956]
[1766678421530,0.05708,88481.0,88463.0,0.01148146]
[1766678421918,0.05708,88481.0,88470.0,0.07674506]
[1766678422323,0.05708,88481.0,88463.0,0.00016956]
[1766678422639,0.0113102,88478.0,88470.0,0.07674506]
[1766678422834,0.0113104,88476.0,88463.0,0.00016956]
[1766678423134,0.05708,88481.0,88458.0,0.05708]
[1766678423439,0.0113108,88473.0,88460.0,0.07674506]
[1766678423734,0.0113111,88470.0,88460.0,0.07674506]
[1766678424041,0.0113104,88476.0,88458.0,0.05708]
[1766678424234,0.01147996,88476.0,88459.0,0.0113125]
[1766678424426,0.00016956,88476.0,88460.0,0.09595723]
[1766678425127,0.00016956,88476.0,88459.0,0.0113125]
[1766678425434,0.00016956,88476.0,88462.0,0.0113121]
[1766678425632,0.00016956,88476.0,88464.0,0.0113118]
[1766678425834,0.05708,88483.0,88464.0,0.0113118]
[1766678426137,0.0113089,88488.0,88460.0,0.10725723]
[1766678426336,0.0113089,88488.0,88470.0,0.09595723]
[1766678426734,0.00956,88490.0,88470.0,0.011311]
[1766678427837,0.0113088,88489.0,88470.0,0.011311]
[1766678428134,0.0113088,88489.0,88471.0,0.00016956]
[1766678429729,0.0113084,88492.0,88473.0,0.0113107]
[1766678430134,0.0113086,88490.0,88473.0,0.0113107]
[1766678430437,0.05708,88495.0,88475.0,0.0113105]
[1766678430643,0.05708,88495.0,88471.0,0.01148046]
[1766678430943,0.05708,88495.0,88473.0,0.0113107]
[1766678430944,0.0113085,88491.0,88473.0,0.0113107]
[1766678431142,0.05708,88495.0,88471.0,0.00016956]
[1766678431532,0.00022598,88502.0,88471.0,0.00016956]
[1766678431737,0.00022598,88502.0,88484.0,0.0113093]
[1766678431938,0.00022598,88502.0,88485.0,0.0113091]
[1766678432140,0.01153308,88502.0,88485.0,0.0113091]
[1766678432539,0.01153308,88502.0,88482.0,0.0113095]
[1766678432935,0.0113073,88500.0,88482.0,0.0113095]
[1766678433140,0.00022598,88502.0,88476.0,0.0113103]
[1766678433340,0.0113077,88497.0,88478.0,0.01131]
[1766678433546,0.00022598,88502.0,88471.0,0.00016956]
[1766678433751,0.0113086,88490.0,88471.0,0.00016956]
[1766678433946,0.0113089,88488.0,88471.0,0.00016956]
[1766678434339,0.00022598,88502.0,88471.0,0.00016956]
[1766678434535,0.0113092,88486.0,88471.0,0.00016956]
[1766678436349,0.0113097,88482.0,88471.0,0.00016956]
[1766678436549,0.0113085,88491.0,88471.0,0.00016956]
[1766678436744,0.0113088,88489.0,88471.0,0.00016956]
[1766678437554,0.0113088,88489.0,88472.0,0.0113108]
[1766678437850,0.0113084,88492.0,88472.0,0.0113108]
[1766678439951,0.0303479,88496.0,88471.0,0.00016956]
[1766678440248,0.0113073,88500.0,88471.0,0.00016956]
[1766678440450,0.0113076,88498.0,88471.0,0.00016956]
[1766678440954,0.00022598,88502.0,88484.0,0.0113093]
[1766678441252,0.0113075,88499.0,88481.0,0.0113097]
[1766678441450,0.03152,88501.0,88481.0,0.0113097]
[1766678441651,0.0113073,88500.0,88481.0,0.0113097]
[1766678442049,0.0113073,88500.0,88482.0,0.0113]
[1766678442644,0.03152,88501.0,88485.0,0.0113091]
[1766678443652,0.03152,88501.0,88487.0,0.0113089]
[1766678444250,0.03152,88501.0,88484.0,0.0113093]
[1766678444455,0.0113073,88500.0,88483.0,0.0113094]
[1766678444851,0.03152,88501.0,88482.0,0.0113]
[1766678445061,0.0113081,88495.0,88482.0,0.0113]
[1766678445261,0.0113082,88493.0,88482.0,0.0113]
[1766678445658,0.0113082,88493.0,88482.0,0.00638189]
[1766678445861,0.0428272,88501.0,88471.0,0.00016956]
[1766678446159,0.0113085,88491.0,88471.0,0.01148046]
[1766678447457,0.0113085,88491.0,88473.0,0.0113107]
[1766678448763,0.0428272,88501.0,88471.0,0.00016956]
[1766678448957,0.0428272,88501.0,88472.0,0.0113108]
[1766678449256,0.03152,88501.0,88471.0,0.00016956]
[1766678449461,0.0113082,88494.0,88476.0,0.0113103]
[1766678449661,0.03152,88501.0,88475.0,0.0113104]
[1766678450063,0.0113082,88493.0,88475.0,0.0113104]
[1766678450658,0.03152,88501.0,88474.0,0.0113106]
[1766678450859,0.011308,88495.0,88476.0,0.0113103]
[1766678452056,0.03152,88501.0,88473.0,0.0113107]
[1766678452563,0.03152,88501.0,88476.0,0.0113104]
[1766678452963,0.0113078,88497.0,88478.0,0.0113101]
[1766678453351,0.0113074,88500.0,88471.0,0.00016956]
[1766678454762,0.0113076,88498.0,88480.0,0.0113097]
[1766678456262,0.00022598,88502.0,88471.0,0.00016956]
[1766678456564,0.00022598,88502.0,88479.0,0.0113099]
[1766678456763,0.00022598,88502.0,88477.0,0.0113102]
[1766678457362,0.011308,88495.0,88477.0,0.0113102]
[1766678458365,0.0113076,88498.0,88479.0,0.0113099]
[1766678458861,0.0113076,88498.0,88471.0,0.00016956]
[1766678458862,0.00022598,88502.0,88475.0,0.0113104]
[1766678459168,0.0113078,88497.0,88477.0,0.0113102]
[1766678459361,0.011308,88495.0,88477.0,0.0113102]
[1766678460555,0.0113082,88493.0,88474.0,0.0204705]
[1766678460750,0.0113086,88490.0,88473.0,0.0113107]
[1766678461556,0.00022598,88502.0,88472.0,0.0113109]
[1766678461750,0.0113075,88498.0,88472.0,0.0113109]
[1766678462266,0.00022598,88502.0,88471.0,0.00016956]
[1766678462567,0.0113082,88493.0,88471.0,0.00016956]
[1766678462962,0.0113082,88493.0,88475.0,0.0113104]
[1766678463166,0.0113077,88497.0,88477.0,0.0113102]
[1766678463463,0.0113082,88493.0,88473.0,0.0113107]
[1766678463665,0.0113085,88491.0,88473.0,0.0113107]
[1766678464161,0.00022598,88502.0,88471.0,0.00016956]
[1766678464365,0.0113087,88490.0,88471.0,0.00016956]
[1766678465067,0.0113087,88490.0,88472.0,0.0113108]
[1766678465565,0.0113077,88498.0,88471.0,0.00016956]
[1766678465770,0.011309,88487.0,88468.0,0.0113113]
[1766678466459,0.0113072,88501.0,88465.0,0.04828]
[1766678466663,0.0113085,88491.0,88472.0,0.0113108]
[1766678466867,0.00016956,88490.0,88473.0,0.00016956]
[1766678467770,0.00016956,88490.0,88472.0,0.0113108]
[1766678467970,0.00016956,88490.0,88474.0,0.0113105]
[1766678468569,0.00016956,88490.0,88476.0,0.0113103]
[1766678468759,0.00016956,88490.0,88478.0,0.0113101]
[1766678469470,0.00016956,88490.0,88474.0,0.00016956]
[1766678469659,0.00016956,88490.0,88474.0,0.01148006]
[1766678469860,0.00016956,88490.0,88478.0,0.0113101]
[1766678470171,0.00016956,88490.0,88474.0,0.00016956]
[1766678470369,0.00016956,88490.0,88480.0,0.0113098]
[1766678470862,0.00016956,88490.0,88477.0,0.0113102]
[1766678471061,0.00016956,88490.0,88474.0,0.00016956]
[1766678471771,0.00016956,88490.0,88482.0,0.0113095]
[1766678471974,0.0113072,88501.0,88482.0,0.0113095]
[1766678472172,0.0113075,88499.0,88482.0,0.0113095]
[1766678472967,0.00016956,88499.0,88485.0,0.0113091]
[1766678473569,0.00016956,88499.0,88482.0,0.0113095]
[1766678474675,0.0113075,88498.0,88482.0,0.0113095]
[1766678474876,0.0113078,88496.0,88479.0,0.0113099]
[1766678475074,0.011308,88495.0,88478.0,0.0113101]
[1766678475274,0.0113076,88498.0,88480.0,0.0113098]
[1766678475578,0.00016956,88499.0,88482.0,0.0113096]
[1766678476975,0.00016956,88499.0,88474.0,0.00016956]
[1766678477170,0.0113082,88493.0,88456.0,0.0113128]
[1766678477373,0.0113111,88471.0,88446.0,1.44252]
[1766678477571,0.0113107,88474.0,88452.0,0.0131534]
[1766678477773,0.0113107,88474.0,88454.0,0.0113131]
[1766678478069,0.011311,88472.0,88452.0,0.00184]
[1766678478269,0.00016956,88471.0,88453.0,0.00016956]
[1766678478471,0.0113117,88466.0,88453.0,0.00016956]
[1766678478666,0.0113117,88466.0,88444.0,0.0113144]
[1766678478867,0.011312,88464.0,88444.0,0.0113144]
[1766678479466,0.011312,88464.0,88441.0,0.0113148]
[1766678479667,0.011312,88464.0,88444.0,0.00016956]
[1766678479965,0.011312,88464.0,88444.0,0.01148396]
[1766678480363,0.00968,88469.0,88444.0,0.00016956]
[1766678480562,0.0113121,88463.0,88444.0,0.00016956]
[1766678480779,0.0113124,88461.0,88444.0,0.00016956]
[1766678481279,0.0113126,88459.0,88444.0,0.00016956]
[1766678481476,0.0113114,88468.0,88444.0,0.00016956]
[1766678481780,0.00016956,88471.0,88444.0,0.00016956]
[1766678481781,0.0113119,88465.0,88444.0,0.00016956]
[1766678481965,0.0113114,88468.0,88447.0,0.0113141]
[1766678482880,0.0113117,88466.0,88447.0,0.0113141]
[1766678484381,0.00016956,88471.0,88444.0,0.00016956]
[1766678484582,0.00832,88470.0,88444.0,0.00016956]
[1766678484881,0.00716,88469.0,88451.0,0.0113135]
[1766678486180,0.00716,88469.0,88453.0,0.0113132]
[1766678486773,0.00716,88469.0,88450.0,0.0113136]
[1766678486970,0.00716,88469.0,88444.0,0.00016956]
[1766678487171,0.0113117,88466.0,88448.0,0.0113138]
[1766678487372,0.00716,88469.0,88444.0,0.00016956]
[1766678487669,0.0113117,88466.0,88433.0,0.00226161]
[1766678487876,0.0113129,88457.0,88432.0,1.86e-06]
[1766678488187,0.0113159,88434.0,88409.0,0.0113188]
[1766678488480,0.0113162,88430.0,88406.0,0.0113193]
[1766678488679,0.0113162,88430.0,88395.0,0.00988]
[1766678488680,0.00016956,88427.0,88409.0,0.00016956]
[1766678488880,0.00016956,88427.0,88384.0,0.0113221]
[1766678489083,0.0113177,88419.0,88395.0,0.0113206]
[1766678489377,0.00012185,88418.0,88394.0,0.0113208]
[1766678489582,0.00012185,88418.0,88382.0,0.01012]
[1766678489982,0.00016966,88409.0,88396.0,0.0113206]
[1766678490283,0.00016966,88409.0,88391.0,0.00016966]
[1766678490482,0.0113195,88405.0,88370.0,0.0002261]
[1766678490783,9.988e-05,88408.0,88370.0,0.09631903]
[1766678490973,0.00952,88404.0,88380.0,0.09609293]
[1766678491173,9.988e-05,88408.0,88370.0,0.09631903]
[1766678491482,0.00488,88407.0,88388.0,0.0113216]
[1766678491870,0.011317,88425.0,88390.0,0.09609293]
[1766678492181,0.0113173,88422.0,88399.0,0.0113201]
[1766678492373,0.00952,88424.0,88384.0,1.44304]
[1766678492773,0.0113175,88420.0,88395.0,0.00016966]
[1766678492980,0.0113197,88403.0,88382.0,0.0113223]
[1766678493179,0.0113197,88403.0,88381.0,0.00016]
[1766678493375,0.0113193,88407.0,88381.0,0.0114825]
[1766678493576,0.01756,88408.0,88381.0,0.00016]
[1766678494075,0.01756,88408.0,88386.0,0.00011322]
[1766678494277,0.0113195,88405.0,88386.0,0.00011322]
[1766678494475,0.01756,88408.0,88386.0,0.00011322]
[1766678494684,0.01756,88408.0,88387.0,0.0113217]
[1766678495483,0.00016966,88413.0,88386.0,0.00011322]
[1766678495672,0.00016966,88413.0,88390.0,0.09609293]
[1766678496186,0.00016966,88413.0,88397.0,0.0113204]
[1766678496889,0.00016966,88413.0,88386.0,0.00011322]
[1766678497678,0.0113192,88408.0,88387.0,0.0113217]
[1766678498288,0.0113192,88408.0,88386.0,0.00011322]
[1766678498492,0.00016966,88413.0,88386.0,0.00011322]
[1766678498890,0.0113194,88406.0,88386.0,0.00011322]
[1766678499091,0.0113197,88404.0,88386.0,0.00011322]
[1766678499396,0.00016966,88413.0,88386.0,0.00011322]
[1766678499587,0.00016966,88413.0,88377.0,0.130523]
[1766678500096,0.00016966,88413.0,88377.0,0.011323]
[1766678500496,0.0113191,88408.0,88376.0,0.0112]
[1766678502297,0.0113191,88408.0,88384.0,0.011322]
[1766678503087,0.0113194,88406.0,88384.0,0.011322]
[1766678503599,0.0113189,88410.0,88376.0,0.0112]
[1766678503893,0.00952,88409.0,88390.0,0.0113213]
[1766678504095,0.0113189,88410.0,88390.0,0.0113213]
[1766678504298,0.00968,88409.0,88394.0,0.0113208]
[1766678504495,0.05704,88412.0,88394.0,0.0113208]
[1766678505798,0.0113187,88411.0,88394.0,0.0113208]
[1766678505990,0.05704,88412.0,88400.0,0.01132]
[1766678506500,0.00016966,88413.0,88400.0,0.01132]
[1766678506702,0.00016966,88413.0,88397.0,0.0113204]
[1766678506893,0.00016966,88413.0,88380.0,0.10741553]
[1766678507098,0.00016966,88413.0,88388.0,0.0113215]
[1766678507288,0.0113186,88412.0,88381.0,0.05704]
[1766678507493,0.00016966,88413.0,88399.0,0.0113201]
[1766678508198,0.00016966,88413.0,88390.0,0.09609293]
[1766678509199,0.00016966,88413.0,88397.0,0.0113204]
[1766678509599,0.0113186,88412.0,88397.0,0.0113204]
[1766678509800,0.00016966,88413.0,88390.0,0.09609293]
[1766678509996,0.00016966,88413.0,88380.0,1.44372]
[1766678509997,0.05704,88423.0,88400.0,0.09609293]
[1766678510196,0.05704,88423.0,88393.0,0.05704]
[1766678510505,0.0113179,88418.0,88393.0,0.05704]
[1766678510803,0.05704,88423.0,88392.0,0.0113211]
[1766678511004,0.0113193,88406.0,88399.0,0.00016966]
[1766678511391,0.00016966,88416.0,88388.0,0.05704]
[1766678511595,0.0113187,88412.0,88395.0,0.0113207]
[1766678511796,0.0113185,88413.0,88397.0,0.0113204]
[1766678512706,0.0113185,88413.0,88394.0,0.0113208]
[1766678513307,0.0113185,88413.0,88396.0,0.0113205]
[1766678513701,0.01148776,88416.0,88400.0,0.01132]
[1766678514007,0.00016966,88416.0,88390.0,0.09609293]
[1766678514306,0.00016966,88416.0,88406.0,0.0113192]
[1766678515598,0.00016966,88416.0,88392.0,0.0113211]
[1766678515799,0.00016966,88416.0,88402.0,0.0113198]
[1766678516509,0.0113183,88414.0,88399.0,0.0113201]
[1766678516808,0.00016966,88416.0,88399.0,0.0113201]
[1766678517909,0.00016966,88416.0,88401.0,0.0113199]
[1766678518204,0.00016966,88416.0,88404.0,0.0113195]
[1766678519507,0.00016966,88416.0,88401.0,0.0113199]
[1766678519903,0.00016966,88416.0,88390.0,0.09609293]
[1766678520109,0.0113189,88410.0,88394.0,0.0113208]
[1766678520311,0.0113185,88413.0,88394.0,0.0413208]
[1766678521012,0.0113188,88411.0,88391.0,0.0113212]
[1766678521315,0.0203982,88415.0,88391.0,0.03]
[1766678522410,0.00908,88415.0,88392.0,0.0113211]
[1766678522610,0.00908,88415.0,88396.0,0.0113205]
[1766678522917,0.00908,88415.0,88384.0,0.0113221]
[1766678522918,0.00908,88415.0,88399.0,0.0113202]
[1766678523619,0.00908,88415.0,88401.0,0.0113199]
[1766678523919,0.00016966,88416.0,88406.0,0.0113193]
[1766678524113,0.0113169,88425.0,88406.0,0.0113193]
[1766678524316,0.03512,88424.0,88406.0,0.0113193]
[1766678524631,0.03512,88424.0,88402.0,0.0113197]
[1766678525222,0.03512,88424.0,88404.0,0.00016966]
[1766678525223,0.011318,88417.0,88404.0,0.00016966]
[1766678525612,0.00016966,88422.0,88404.0,0.01148906]
[1766678525815,0.00016966,88422.0,88404.0,0.00016966]
[1766678526116,0.00016966,88422.0,88408.0,0.011319]
[1766678526318,0.00016966,88422.0,88411.0,0.0113186]
[1766678526517,0.008,88431.0,88408.0,0.011319]
[1766678526721,0.011317,88425.0,88408.0,0.011319]
[1766678527223,0.0113164,88429.0,88410.0,0.0113187]
[1766678527522,0.00016966,88428.0,88413.0,0.0113184]
[1766678527908,0.00016966,88428.0,88404.0,0.00016966]
[1766678528106,0.00016966,88428.0,88404.0,0.02016966]
[1766678528520,0.0164,88435.0,88410.0,0.09609293]
[1766678528711,0.0164,88435.0,88421.0,0.0113173]
[1766678529322,0.0164,88435.0,88411.0,0.05704]
[1766678529526,0.00016966,88432.0,88404.0,0.00016966]
[1766678529725,0.0113167,88427.0,88409.0,0.0113189]
[1766678529927,0.0113167,88427.0,88409.0,0.0413189]
[1766678530224,0.0113162,88431.0,88409.0,0.03]
[1766678530425,0.0113164,88429.0,88413.0,0.0113183]
[1766678530625,0.0113167,88427.0,88410.0,0.0113188]
[1766678530825,0.0113167,88427.0,88410.0,0.0313188]
[1766678531028,0.0113167,88427.0,88412.0,0.0113185]
[1766678532727,0.0113163,88430.0,88412.0,0.0113185]
[1766678533717,0.00016966,88432.0,88405.0,0.05704]
[1766678533927,0.00016966,88432.0,88405.0,0.08704]
[1766678534430,0.00016966,88432.0,88419.0,0.0113176]
[1766678534922,0.00016966,88432.0,88416.0,0.011318]
[1766678535428,0.00016966,88432.0,88418.0,0.0113177]
[1766678535628,0.00016966,88432.0,88420.0,0.0113175]
[1766678536425,0.0113163,88430.0,88411.0,0.0113186]
[1766678537123,0.00016966,88432.0,88411.0,0.0113186]
[1766678537427,0.00016966,88432.0,88408.0,0.011319]
[1766678537629,0.0113163,88430.0,88408.0,0.041319]
[1766678537931,0.00016966,88432.0,88416.0,0.0113179]
[1766678539129,0.0113161,88431.0,88416.0,0.0113179]
[1766678539326,0.0113168,88426.0,88412.0,0.01812]
[1766678539628,0.00016966,88432.0,88412.0,0.01812]
[1766678540428,0.0113168,88426.0,88412.0,0.01812]
[1766678541029,0.0113172,88423.0,88404.0,0.01148906]
[1766678541330,0.00016966,88432.0,88404.0,0.00016966]
[1766678541522,0.011318,88417.0,88404.0,0.00016966]
[1766678542431,0.0113182,88415.0,88404.0,0.00016966]
[1766678542629,0.0113182,88415.0,88393.0,0.01131]
[1766678542630,0.0112,88422.0,88393.0,0.01131]
[1766678542819,0.0113211,88393.0,88372.0,0.0113235]
[1766678543020,0.0113196,88404.0,88372.0,0.03]
[1766678543221,0.0094,88405.0,88372.0,0.03]
[1766678543520,0.0113218,88387.0,88380.0,0.00016966]
[1766678543721,0.0113223,88383.0,88366.0,0.02524]
[1766678543919,0.0113219,88387.0,88366.0,0.02524]
[1766678544128,0.0113213,88391.0,88368.0,0.0113242]
[1766678544327,0.00016966,88397.0,88381.0,0.0113225]
[1766678545433,0.0113183,88415.0,88381.0,0.04136]
[1766678545729,0.0113183,88415.0,88393.0,0.011321]
[1766678545924,0.07298776,88440.0,88381.0,0.04136]
[1766678545925,0.0113171,88424.0,88399.0,0.0113202]
[1766678546129,0.0113173,88422.0,88399.0,0.0113202]
[1766678546336,0.00016966,88419.0,88402.0,0.00016966]
[1766678548331,0.00016966,88419.0,88403.0,0.0113196]
[1766678548728,0.05704,88423.0,88409.0,0.0113189]
[1766678548932,0.011316,88433.0,88410.0,0.10741173]
[1766678549338,0.011316,88433.0,88410.0,0.0113188]
[1766678549934,0.00016966,88430.0,88413.0,0.00016966]
[1766678550735,0.00016966,88430.0,88413.0,0.01148806]
[1766678552128,0.01148596,88430.0,88413.0,0.00016966]
[1766678552938,0.00016966,88430.0,88413.0,0.00016966]
[1766678553841,0.00016966,88430.0,88399.0,0.0113202]
[1766678553842,0.00016966,88430.0,88397.0,0.0158]
[1766678554039,0.00016966,88430.0,88397.0,0.0458]
[1766678554240,0.0113175,88421.0,88398.0,0.0113202]
[1766678554437,0.0113175,88421.0,88398.0,0.0983602]
[1766678554734,0.011317,88425.0,88403.0,0.0113196]
[1766678554936,0.0113165,88428.0,88405.0,0.0113193]
[1766678555141,0.0113169,88426.0,88405.0,0.0113193]
[1766678555951,0.00016966,88430.0,88409.0,0.0113189]
[1766678556147,0.01148596,88430.0,88411.0,0.0113186]
[1766678556340,0.0113166,88428.0,88407.0,0.0113191]
[1766678556540,0.00016966,88430.0,88407.0,0.0113191]
[1766678556740,0.00016966,88430.0,88404.0,0.0113195]
[1766678557050,0.0113176,88420.0,88402.0,0.0113198]
[1766678557249,0.0113176,88420.0,88402.0,0.03]
[1766678557451,0.00016966,88430.0,88406.0,0.0113193]
[1766678557756,0.011317,88425.0,88403.0,0.0113197]
[1766678558050,0.011317,88425.0,88403.0,0.0313197]
[1766678558852,0.00016966,88430.0,88403.0,0.0313197]
[1766678558853,0.0113175,88421.0,88403.0,0.0313197]
[1766678559753,0.0113175,88421.0,88403.0,0.02]
[1766678560454,0.0113178,88418.0,88403.0,0.02]
[1766678560651,0.0113186,88412.0,88401.0,0.00016966]
[1766678560858,0.0112,88423.0,88392.0,0.1214]
[1766678561056,0.0225172,88423.0,88404.0,0.0113195]
[1766678561256,0.0113162,88431.0,88410.0,0.0113187]
[1766678561657,0.0113162,88431.0,88412.0,0.0113185]
[1766678561852,0.00016966,88430.0,88413.0,0.00016966]
[1766678562658,0.0113164,88429.0,88413.0,0.00016966]
[1766678563755,0.00016966,88430.0,88413.0,0.01148796]
[1766678563960,0.00016966,88430.0,88415.0,0.011318]
[1766678564556,0.00016966,88430.0,88417.0,0.0113178]
[1766678564859,0.057,88432.0,88417.0,0.0113178]
[1766678565758,0.057,88432.0,88394.0,0.01131]
[1766678565957,0.00016966,88433.0,88374.0,0.00476]
[1766678565958,0.0113186,88412.0,88374.0,0.00476]
[1766678566153,0.0113182,88415.0,88395.0,0.0113207]
[1766678566459,0.0207973,88422.0,88395.0,0.03]
[1766678566650,0.011316,88432.0,88392.0,0.057]
[1766678566850,0.06307481,88448.0,88392.0,0.057]
[1766678566851,0.00016966,88421.0,88403.0,0.00016966]
[1766678567261,0.0113184,88414.0,88403.0,0.00016966]
[1766678568664,0.0113186,88412.0,88403.0,0.00016966]
[1766678568960,0.0113186,88412.0,88383.0,0.04716]
[1766678568961,0.0113205,88398.0,88383.0,0.04716]
[1766678569155,0.0113205,88398.0,88383.0,0.07716]
[1766678569656,0.0113214,88390.0,88383.0,0.03]
[1766678569959,0.011321,88393.0,88375.0,0.0683232]
[1766678570155,0.0113213,88391.0,88375.0,0.0983232]
[1766678570352,1.44368,88413.0,88375.0,0.087]
[1766678570553,1.44368,88413.0,88384.0,0.011322]
[1766678570554,0.0113199,88402.0,88384.0,0.011322]
[1766678571563,0.01148956,88402.0,88384.0,0.01149166]
[1766678571962,0.0113202,88400.0,88384.0,0.01149166]
[1766678575170,0.0113202,88400.0,88384.0,0.00016966]
[1766678575471,0.00016966,88402.0,88385.0,0.011322]
[1766678575655,0.00016966,88402.0,88388.0,0.0113216]
[1766678575856,0.00016966,88402.0,88390.0,0.0113213]
[1766678576973,0.00016966,88402.0,88387.0,0.0113217]
[1766678578166,0.00016966,88402.0,88384.0,0.00016966]
[1766678578367,0.0113187,88411.0,88384.0,0.03016966]
[1766678579264,0.0113186,88412.0,88396.0,0.0113205]
[1766678581274,0.0113186,88412.0,88393.0,0.0113209]
[1766678581474,0.0113189,88410.0,88393.0,0.0113209]
[1766678582575,0.0113188,88411.0,88395.0,0.0113207]
[1766678583177,0.00016966,88413.0,88395.0,0.0113207]
[1766678583474,0.0113186,88412.0,88395.0,0.0113207]
[1766678583869,0.01908,88428.0,88392.0,0.0348]
[1766678584075,0.08064903,88428.0,88392.0,0.0648]
[1766678584279,0.0113179,88418.0,88392.0,0.0648]
[1766678584670,0.0113177,88419.0,88400.0,0.01132]
[1766678584876,0.00016966,88418.0,88402.0,0.0113197]
[1766678585374,0.01908,88428.0,88401.0,0.00016966]
[1766678586178,0.0113173,88422.0,88406.0,0.0113192]
[1766678588179,0.0113176,88420.0,88406.0,0.0113192]
[1766678588489,0.00016966,88423.0,88403.0,0.0113196]
[1766678588779,0.0113178,88418.0,88403.0,0.0113196]
[1766678590165,0.00016966,88423.0,88403.0,0.0113196]
[1766678590371,0.00016966,88423.0,88401.0,0.00016966]
[1766678590571,0.00016966,88423.0,88407.0,0.0113191]
[1766678590981,0.00016966,88423.0,88409.0,0.0113188]
[1766678591784,0.00016966,88423.0,88401.0,0.00016966]
[1766678591982,0.0113178,88418.0,88402.0,0.0113197]
[1766678592185,0.0113188,88411.0,88401.0,0.00016966]
[1766678592370,0.0113188,88411.0,88397.0,0.0113204]
[1766678592575,0.0113184,88414.0,88397.0,0.0413204]
[1766678593186,0.0113184,88414.0,88399.0,0.0113202]
[1766678594384,0.00016966,88423.0,88398.0,0.00016966]
[1766678594578,0.0113187,88411.0,88398.0,0.00016966]
[1766678594778,0.011319,88409.0,88398.0,0.00016966]
[1766678594979,0.0113194,88406.0,88389.0,0.057]
[1766678595175,0.0113182,88415.0,88389.0,0.02]
[1766678595384,0.01132,88401.0,88387.0,0.1203]
[1766678595971,0.01132,88401.0,88387.0,0.1773]
[1766678597087,0.01132,88401.0,88387.0,0.1886217]
[1766678597683,0.00016966,88403.0,88389.0,0.0113214]
[1766678601793,0.0113199,88402.0,88388.0,0.057]
[1766678603195,0.00016966,88403.0,88385.0,0.06849166]
[1766678603390,0.00016966,88403.0,88385.0,0.05716966]
[1766678605209,0.00016966,88403.0,88389.0,0.0113214]
[1766678605602,0.0113202,88399.0,88385.0,0.06849156]
[1766678605800,0.00016966,88403.0,88385.0,0.06849156]
[1766678606002,0.0113199,88402.0,88387.0,0.0113217]
[1766678606809,0.00016966,88403.0,88386.0,0.0113219]
[1766678607210,0.00016966,88403.0,88389.0,0.0113214]
[1766678607406,0.00016966,88403.0,88385.0,0.00016966]
[1766678608611,0.00016966,88403.0,88386.0,0.0113218]
[1766678609710,0.00016966,88403.0,88374.0,0.1203]
[1766678609917,0.011321,88393.0,88374.0,0.087]
[1766678610115,0.011321,88393.0,88378.0,0.0113229]
[1766678610315,0.0113206,88397.0,88380.0,0.0113226]
[1766678610506,0.00016966,88403.0,88380.0,0.03]
[1766678610707,0.00016966,88403.0,88383.0,0.0113222]
[1766678610905,0.00016966,88403.0,88384.0,0.00016966]
[1766678611105,0.0113203,88399.0,88385.0,0.011322]
[1766678613121,0.00016966,88403.0,88387.0,0.0113217]
[1766678613821,0.01132,88401.0,88384.0,0.01149166]
[1766678614211,0.0113203,88399.0,88384.0,0.01149166]
[1766678614717,0.0113199,88402.0,88386.0,0.0113218]
[1766678615521,0.0113201,88400.0,88386.0,0.0113218]
[1766678615819,0.0113216,88389.0,88384.0,6e-08]